Cogmind - Beta 16 @@@ ROGUE MODE // 2025.12.09 @ 18:52:10 Player: BlobtheGreat Result: Destroyed by D-53 Grenadier with Mini Grenade Launcher Performance ------------- Evolutions (0) 0 Regions Visited (3) 600 Robots Destroyed (30) 150 Value Destroyed (752) 752 Prototype IDs (13) 260 Alien Tech Used (0) 0 Bonus (-17) -17 TOTAL SCORE: 1745 Bonus ------- Friendly Fire -17 Cogmind --------- Core Integrity 0/250 Matter 160/300 Energy 193/200 System Corruption 0% Temperature Cool (17) Movement Treading (480) Ox4 Location -8/Recycling Parts ------- > --- POWER (1) -------- Subdweller Power Source > --- PROPULSION (2) --- Light Treads > --- UTILITY (2) ------ Huge Storage Unit V3-11A's Pendant > --- WEAPON (2) ------- Battle Cannon Slug Cannon > --- INVENTORY (25) --- Improved Ion Engine Spiked Treads Spiked Treads Subdweller Monowheel Disposable Heat Sink Large Storage Unit Seismic Detector Scrap Shield Subdweller Laser Subdweller Laser Subdweller Laser Powered Cannon Heavy Assault Rifle Heavy Assault Rifle Heavy Assault Rifle Heavy Assault Rifle Battle Rifle Barrage Gun Mining Laser Flail Ripper Piercing Trap Peak State ------------ > --- POWER ------------ Subdweller Power Source > --- PROPULSION ------- Light Treads Light Treads > --- UTILITY ---------- Disposable Heat Sink Huge Storage Unit > --- WEAPON ----------- Barrage Gun Slug Cannon > --- INVENTORY -------- Improved Ion Engine Spiked Treads Spiked Treads Subdweller Monowheel Large Storage Unit Seismic Detector Scrap Shield Subdweller Laser Subdweller Laser Subdweller Laser Powered Cannon Heavy Assault Rifle Heavy Assault Rifle Heavy Assault Rifle Heavy Assault Rifle Battle Rifle Mining Laser Flail Ripper Piercing Trap [Rating: 19] Favorites ----------- Power Subdweller Power Source Engine Subdweller Power Source Power Core Light Nuclear Core Propulsion Light Treads Treads Light Treads Wheel Subdweller Monowheel Utility Huge Storage Unit Device Seismic Detector Storage Huge Storage Unit Protection Light Armor Plating Weapon Heavy Assault Rifle Energy Gun Medium Laser Ballistic Gun Heavy Assault Rifle Ballistic Cannon Slug Cannon Special Weapon Mining Laser Build | -11 -10 -10 -8 ------- Run | Yrd Mat Sub Rec Slots Evolved . | . . . . Power . | . . . . Propulsion . | . . . . Utility . | . . . . Weapon . | . . . . Parts Attached 27 | 6 7 14 . Power 4 | 1 1 2 . Engine 3 | 1 . 2 . Core 1 | . 1 . . Reactor . | . . . . Propulsion 8 | 2 1 5 . Treads 7 | 2 1 4 . Leg . | . . . . Wheel 1 | . . 1 . Hover . | . . . . Flight . | . . . . Utility 7 | 1 2 4 . Device 3 | . 1 2 . Storage 3 | 1 1 1 . Processor . | . . . . Hackware . | . . . . Protection 1 | . . 1 . Artifact . | . . . . Weapon 8 | 2 3 3 . Energy Gun 2 | 2 . . . Energy Cannon . | . . . . Ballistic Gun 3 | . 2 1 . Ballistic Cannon 2 | . . 2 . Launcher . | . . . . Special Weapon 1 | . 1 . . Impact Weapon . | . . . . Slashing Weapon . | . . . . Piercing Weapon . | . . . . Special Melee Weapon . | . . . . Unidentified Prototypes 1 | . . 1 . Parts Lost 6 | . . 5 1 Power 2 | . . 2 . Propulsion 2 | . . 1 1 Utility 2 | . . 2 . Weapon . | . . . . Highest Loss Streak 1 | . . 1 1 To Critical Strikes . | . . . . Average Backups 17 | 5 9 19 21 Power 1 | . 1 1 1 Propulsion 3 | 3 3 3 3 Utility 3 | . 1 3 4 Weapon 9 | . 3 11 13 Tool/Special . | . . . . Unused Backups 21 | . 3 6 12 Power 3 | . . 2 1 Propulsion 4 | . 2 2 . Utility 3 | . . 1 2 Weapon 11 | . 1 1 9 Tool/Special . | . . . . Average Slot Usage (%) 98 | . 99 98 99 Engine 11 | . 2 12 14 Core 2 | . 11 1 . Treads 27 | . 27 27 27 Device 12 | . 13 12 14 Storage 14 | . 14 14 14 Ballistic Gun 11 | . 19 10 . Ballistic Cannon 14 | . . 16 28 Peak Build Rating 19 | 6 13 19 19 Average Rating 16 | 5 10 16 18 On Entrance 9 | . 6 12 19 Avg Prop Armor Cover (%) 10 | . . 10 . Naked Turns . | . . . . Heaviest Build 96 | 11 32 96 96 Greatest Support 40 | 40 40 40 40 Greatest Overweight (x) 4 | . 1 4 2 Average Overweight (x) 1 | . . 1 2 Largest Inventory Capacity 25 | 8 15 25 25 Average Capacity 21 | 7 11 23 25 Most Carried 24 | 8 14 24 24 Average Carried 19 | 5 9 21 24 Final Capacity 25 | 8 15 25 25 Final Carried 24 | 8 14 24 24 Class Distribution -------------------- 60% | Mutant 39% | Scavenger-Mutant Dominant Class ---------------- Mutant | -10/Materials Mutant | -10/Subcaves Mutant | -8/Recycling Resources | -11 -10 -10 -8 ----------- Run | Yrd Mat Sub Rec Matter Collected 1286 | 258 174 854 . Remotely . | . . . . Salvage Created 981 | 60 347 510 64 Parts 73 | 8 19 45 1 Haulers Intercepted 3 | . 2 . 1 Recyclers Shooed 1 | 1 . . . Parts Field Recycled . | . . . . Retrieved Matter . | . . . . Parts Self-Destructed 23 | . . 23 . Prevented . | . . . . Parts Restored . | . . . . Kills | -11 -10 -10 -8 ------- Run | Yrd Mat Sub Rec Combat Hostiles Destroyed 22 | . 5 16 1 Guns 18 | . 5 13 . Cannons 4 | . . 3 1 Classes Destroyed 8 | 2 3 3 . Worker 1 | 1 . . . Tunneler 2 | 2 . . . Hauler 3 | . 2 . 1 Watcher 2 | . 2 . . Swarmer 6 | . . 6 . Grunt 7 | . 5 1 1 Sentry 1 | . . 1 . Subdweller 8 | . . 8 . Best Kill Streak 4 | 1 3 4 2 Combat Bots Only 4 | . 2 4 1 Max Kills in Single Turn 1 | 1 1 1 1 Gunslinging . | . . . . Exploded . | . . . . Melee . | . . . . Uniques/NPCs Destroyed . | . . . . Combat | -11 -10 -10 -8 -------- Run | Yrd Mat Sub Rec Hostile Shots Fired 119 | . 32 83 4 Missed 29 | . 4 25 . Hits 90 | . 28 58 4 Projectile 90 | . 28 58 4 AOE 4 | . . . 4 Critical Strikes 2 | . 1 1 . Damage Taken 1492 | . 343 1001 148 Core 259 | . 78 136 45 Absorbed by Shields . | . . . . Regen/Repaired (Parts) 109 | . 109 . . Core Remaining (%) 100 | 100 . . . Volleys Fired 183 | 17 38 125 3 Largest 2 | 2 2 2 2 Hottest 100 | 90 100 100 73 Shots Fired 268 | 21 69 172 6 Gun 177 | 21 64 92 . Cannon 78 | . . 72 6 Launcher . | . . . . Special 13 | . 5 8 . Kinetic 198 | . 28 164 6 Thermal 70 | 21 41 8 . Explosive . | . . . . Electromagnetic . | . . . . Robot Hit Streak 12 | 4 11 12 1 Robot Miss Streak 3 | 2 2 3 2 Penetration Max . | . . . . Secondary Targets . | . . . . Shots Hit Robots 131 | 13 47 69 2 Core Hits 49 | 4 17 26 2 Critical Kills . | . . . . Critical Parts Destroyed . | . . . . Critical Strikes 5 | . 3 1 1 Burn 3 | . 3 . . Destroy 1 | . . . 1 Blast 1 | . . 1 . Melee Attacks . | . . . . Impact . | . . . . Slashing . | . . . . Piercing . | . . . . Sneak Attacks . | . . . . Combat Hostiles . | . . . . Follow-up Attacks . | . . . . Damage Inflicted 2178 | 152 665 1241 120 Guns 1550 | 149 636 765 . Cannons 595 | . . 476 119 Explosions . | . . . . Melee . | . . . . Ramming 9 | 3 5 . 1 Kinetic 1660 | . 300 1241 119 Thermal 509 | 149 360 . . Explosive . | . . . . Electromagnetic . | . . . . Impact . | . . . . Slashing . | . . . . Piercing . | . . . . Highest Corruption . | . . . . Average Corruption . | . . . . Corruption Purged . | . . . . Corruption Blocked . | . . . . Overload Shots . | . . . . Overflow Damage . | . . . . Projectiles . | . . . . Explosions . | . . . . Melee . | . . . . Knockbacks 3 | . . 2 1 Impact . | . . . . Kinetic 3 | . . 2 1 Secondary . | . . . . Self-Inflicted Damage . | . . . . Shots . | . . . . Rammed 3 | 1 1 . 1 Targets Rammed 3 | 1 1 . 1 Kicked . | . . . . Crushed . | . . . . Highest Temperature 480 | 120 480 . 8 Average Temperature 133 | 76 146 . 8 Received Heat Transfer 366 | . 204 144 18 Effects 1 | . 1 . . Energy Bleed 1 | . 1 . . Siege Activations . | . . . . Martial Activations . | . . . . Shielding Activations . | . . . . Robots Disrupted . | . . . . Combat Hostiles . | . . . . Robots Corrupted . | . . . . Combat Hostiles . | . . . . Parts Fried . | . . . . Impact Corruptions . | . . . . Robots Melted . | . . . . Combat Hostiles . | . . . . Parts Melted 3 | . 3 . . Heat Transferred 1514 | 349 1165 . . Parts Sabotaged . | . . . . Parts Stolen . | . . . . Parts Stripped . | . . . . Power Chain Reactions . | . . . . Alert | -11 -10 -10 -8 ------- Run | Yrd Mat Sub Rec Maximum Alert Level . | . . . . Low Security (%) 100 | 100 100 . 100 Level 1 . | . . . . Level 2 . | . . . . Level 3 . | . . . . Level 4 . | . . . . Level 5 . | . . . . High Security . | . . . . Max Security . | . . . . Peak Influence 70 | 5 70 . 23 Initial 6 | . . . 6 Average 6 | . 8 . . Influence Increases 493 | 15 214 235 29 Destroy 0b10 Robot/C 280 | . 100 160 20 Destroy 0b10 Robot/NC 40 | 15 20 . 5 Destroy Leader 28 | . 28 . . Allied During Kill 2 | . . . 2 Successful Hack 17 | . 17 . . Disable Machine 15 | . 15 . . Destroy Structure 6 | . 4 . 2 Lose Combat Pursuer 105 | . 30 75 . Influence Decreases 488 | 15 214 221 38 Entered New Map 8 | . . . 8 Time Decay 396 | 15 214 161 6 Lost Part 20 | . . 20 . Lost Ally 64 | . . 40 24 Squads Dispatched 3 | . 3 . . Investigation 1 | . 1 . . Extermination . | . . . . Reinforcement 2 | . 2 . . Assault . | . . . . Garrison . | . . . . Intercept . | . . . . Searches Triggered . | . . . . Construction Impeded . | . . . . Haulers Reinforced . | . . . . Active Scanning Responses . | . . . . Cargo Convoy Interrupts . | . . . . Stealth | -11 -10 -10 -8 --------- Run | Yrd Mat Sub Rec Distress Signals 1 | . 1 . . Communications Jammed . | . . . . Distress Signals . | . . . . Times Spotted 47 | . 14 28 5 Peak Tracking Total 6 | . 3 6 4 Tactical Retreats 5 | . 2 3 . Traps | -11 -10 -10 -8 ------- Run | Yrd Mat Sub Rec Traps Triggered 4 | . 1 3 . Indirectly . | . . . . Trap Hack Attempts . | . . . . Triggered . | . . . . Disarmed . | . . . . Reprogrammed . | . . . . Reused . | . . . . Traps Extracted . | . . . . Installed . | . . . . Triggered . | . . . . Most Traps Carried 1 | . . 1 1 Machines | -11 -10 -10 -8 ---------- Run | Yrd Mat Sub Rec Machines Disabled 2 | . 1 1 . Max in Single Turn 1 | . 1 1 . Machines Repaired . | . . . . Machines Dismantled . | . . . . Machines Sabotaged . | . . . . Overloaded Fab Kills . | . . . . Hacking | -11 -10 -10 -8 --------- Run | Yrd Mat Sub Rec Machines Accessed 7 | . 5 2 . Terminals 4 | . 4 . . Fabricators . | . . . . Repair Stations 1 | . 1 . . Recycling Units . | . . . . Scanalyzers . | . . . . Garrison Access . | . . . . Total Hacks 20 | . 14 6 . Successful 14 | . 8 6 . Failed 6 | . 6 . . Catastrophic 1 | . 1 . . Database Lockouts . | . . . . Manual 9 | . 9 . . Terminals 9 | . 9 . . Fabricators . | . . . . Repair Stations 5 | . 5 . . Recycling Units . | . . . . Scanalyzers . | . . . . Garrison Access . | . . . . Terminal Hacks 8 | . 2 6 . Record 5 | . . 5 . Robot Analysis 2 | . 2 . . Proto ID Catalog 1 | . . 1 . Fabricator Hacks . | . . . . Repair Station Hacks 3 | . 3 . . Scan Component 2 | . 2 . . Repair 1 | . 1 . . Recycling Unit Hacks . | . . . . Scanalyzer . | . . . . Garrison Access Hacks . | . . . . Unauthorized Hacks 3 | . 3 . . Terminals 3 | . 3 . . Botnet 2 | . 2 . . Skim 1 | . 1 . . Fabricators . | . . . . Repair Stations . | . . . . Recycling Units . | . . . . Scanalyzers . | . . . . Garrison Access . | . . . . Data Cores Recovered . | . . . . Used . | . . . . Hacking Detections 5 | . 5 . . Full Trace Events . | . . . . Feedback Events . | . . . . Feedback Blocked . | . . . . Robot Schematics Acquired . | . . . . Robots Built . | . . . . Authchips . | . . . . Time . | . . . . Total Robot Build Rating . | . . . . Part Schematics Acquired . | . . . . Parts Built . | . . . . Authchips . | . . . . Time . | . . . . Total Part Build Rating . | . . . . Part Studies Acquired . | . . . . Parts Repaired 1 | . 1 . . Time 26 | . 26 . . Parts Recycled . | . . . . Recycled Matter . | . . . . Retrieved Matter . | . . . . Retrieved Components . | . . . . Parts Scanalyzed . | . . . . Part Schematics Acquired . | . . . . Parts Damaged . | . . . . Bothacking | -11 -10 -10 -8 ------------ Run | Yrd Mat Sub Rec Used RIF Installer . | . . . . Robots Hacked . | . . . . Non-combat . | . . . . Combat . | . . . . Robot Hacks Applied . | . . . . Relay Couplers Released . | . . . . Fabnet Peak Effective % . | . . . . Robots Rewired . | . . . . Allies Hacked . | . . . . Hacks Repelled . | . . . . Allies | -11 -10 -10 -8 -------- Run | Yrd Mat Sub Rec Total Allies 7 | . . 7 . Largest Group 6 | . . 6 5 Highest-Rated Group 114 | . . 114 95 Highest-Rated Ally 19 | . . 19 19 Total Orders . | . . . . Ally Attacks 15 | . . 7 8 Total Damage 172 | . . 46 126 Kills . | . . . . Allies Corrupted . | . . . . Allies Melted . | . . . . Intel | -11 -10 -10 -8 ------- Run | Yrd Mat Sub Rec Active Infowar (turns) 3059 | . 1117 1942 . Seismic 3059 | . 1117 1942 . Robot Analysis Total 2 | . 2 . . Derelict Logs Recovered 1 | . . 1 . Drone Launches . | . . . . Drone Recoveries . | . . . . Exploration | -11 -10 -10 -8 ------------- Run | Yrd Mat Sub Rec Turns Passed 8959 | 169 1143 7493 154 Spaces Moved 3168 | 78 558 2487 45 Core 10 | 10 . . . Treads 3004 | 68 558 2333 45 Legs . | . . . . Wheels 154 | . . 154 . Hover . | . . . . Flight . | . . . . Fastest Speed 50 | 50 160 150 320 Average Speed 257 | 145 160 281 320 Slowest Speed 320 | 160 240 320 320 Overloaded Moves . | . . . . Propulsion Burnouts . | . . . . Robots Hopped . | . . . . Potential Cave-ins . | . . . . Cave-ins Triggered . | . . . . Exploration Rate (%) 45 | 5 61 98 17 Regions Visited 3 Branch Regions 2 Pre-discovered Areas 1 | . . 1 . Known Exits Taken . | . . . . Unknown Exits Taken 3 | 1 1 1 . Scrap Searched 12 | . . 12 . Spaces Dug 11 | . 3 8 . Terrain Destroyed 16 | . 3 13 . Melee . | . . . . Projectile 16 | . 3 13 . AOE . | . . . . Terrain Rammed . | . . . . Walls Destroyed . | . . . . Machines Disabled . | . . . . Actions | -11 -10 -10 -8 --------- Run | Yrd Mat Sub Rec Total 3665 | 109 727 2780 49 Wait 217 | . 104 113 . Move 3165 | 77 557 2486 45 Hop . | . . . . Pick Up 32 | 8 10 14 . Fast Attach 15 | 6 3 6 . Attach 3 | . 1 2 . Detach 2 | . . 2 . Swap 27 | . 6 21 . Drop 18 | . 7 11 . Fire 183 | 17 38 125 3 Melee . | . . . . Ram . | . . . . Kick . | . . . . Crush 3 | 1 1 . 1 Escape Stasis . | . . . . Rewire . | . . . . Trap . | . . . . Miscellaneous . | . . . . Route ------- -11/Scrapyard -10/Materials (discovered 4 exits: [*Mat x2] / [*Min] / *Sub) -10/Subcaves (discovered 3 exits: [*Mat x2] / [*Rec]) -8/Recycling History --------- Turn | Location | Event 6 | -11/Scrapyard | Discovered new exit (range 16) 170 | -11/Scrapyard | Entered Materials 312 | -10/Materials | Build established: Mutant 413 | -10/Materials | Discovered new exit (range 12) 617 | -10/Materials | Discovered new exit (range 3) 732 | -10/Materials | Discovered new exit (range 5) 968 | -10/Materials | Repaired Lgt. Treads 1297 | -10/Materials | Discovered new exit (range 11) 1313 | -10/Materials | Entered Subcaves 1844 | -10/Subcaves | Shifting Twisted Machinery released Battle Rifle 1927 | -10/Subcaves | Shifting Twisted Machinery released Spk. Treads 2470 | -10/Subcaves | Visited 4L-MR0's lab 2501 | -10/Subcaves | Found Powered Cannon 2638 | -10/Subcaves | A swath of the cavern ceiling suddenly collapsed 2706 | -10/Subcaves | Disturbed a concealed Subdweller 3002 | -10/Subcaves | Build established: Scavenger-Mutant 3258 | -10/Subcaves | Core integrity fell below 50% 3660 | -10/Subcaves | Shifting Twisted Machinery released Mak. Leg 3731 | -10/Subcaves | Visited Clippyterm 3740 | -10/Subcaves | Learned location of Deep Caves (-6) 3740 | -10/Subcaves | Learned Factory fabricator intel 3785 | -10/Subcaves | Discovered new exit (range 15) 3808 | -10/Subcaves | Learned Materials stockpile data 3854 | -10/Subcaves | Discovered new exit (range 14) 4198 | -10/Subcaves | Shifting Twisted Machinery released Slug Cannon 5398 | -10/Subcaves | Discovered new exit (range 15) 5895 | -10/Subcaves | A swath of the cavern ceiling suddenly collapsed 6380 | -10/Subcaves | Visited triangular shrine 6399 | -10/Subcaves | Found Prototype Device 6400 | -10/Subcaves | Identified V3-11A's Pendant 6405 | -10/Subcaves | Befriended Subdweller 6670 | -10/Subcaves | Befriended Subdweller 6706 | -10/Subcaves | Build established: Mutant 7230 | -10/Subcaves | Befriended Subdweller 7245 | -10/Subcaves | Befriended Subdweller 7390 | -10/Subcaves | Befriended Subdweller 7420 | -10/Subcaves | Befriended Subdweller 7454 | -10/Subcaves | Shifting Twisted Machinery released Scrap Shield 8788 | -10/Subcaves | Ambushed by Subdweller buried in earth 8789 | -10/Subcaves | Core integrity fell below 20% 8790 | -10/Subcaves | Befriended Subdweller 8806 | -10/Subcaves | Entered Recycling 8806 | -8/Recycling | Accompanied by 5 allies 8960 | -8/Recycling | Destroyed by D-53 Grenadier with Mini Grenade Launcher Last Messages --------------- LOCATION=UNKNOWN GOAL=ESCAPE 08902_ Slammed into R-06 Scavenger. 08950_ P-60 Hacker springs to life. 08953_ TG-CGS(R) destroyed. 08954_ PA-FSD(R) suffers critical hit (Destroy). 08954_ XY-N05(R) destroyed. 08954_ MC-QPM(R) destroyed. 08954_ P-60 Hacker destroyed. 08954_ U-05 Engineer destroyed. 08954_ T-07 Excavator destroyed. 08956_ G-47 Trooper destroyed. 08958_ PA-FSD(R) destroyed. 08958_ V3-11A: "I hear you, but what does it all mean?!" 08958_ V3-11A destroyed. 08958_ Lgt. Treads destroyed. 08958_ A-02 Transporter destroyed. 08960_ D-53 Grenadier knocked back. 08960_ A-02 Transporter destroyed. Map ----- +----------------------------------------------------+ | ?????????????????????????????????????????????????? | | ?????????????????????????????????????????????????? | | ?????????????????????????????????????????????????? | | ?????????????????????????????????????????????????? | | ?????????????????????????????????????????????????? | | ?????????????????????????????????????????????????? | | ?????????????????????????????????????????????????? | | ?????????????????????????????????????????????????? | | ???????????? ???????????????????????????????????? | | ???????????? ???????????????????????????????????? | | ??##########+###?????????????????????????????????? | | ?## #?????????????????????????????????? | | ?? #?????????????????????????????????? | | ??# #?????????????????????????????????? | | ??# #?????????????????????????????????? | | ??# #???????###########???????????????? | | ??# #???????#= ![ | #???????????????? | | ??# #???????#k i g #???????????????? | | ??# #???????# ts r !#???????????????? | | ??# #???????# k% % #???????????????? | | ??# #?????### * t #???????????????? | | ??# #?????? # [ = tt#???????????????? | | ??# #??????# d%=%%d] #???????????????? | | ??#######+######??????# /*Ygl=#????#??????????? | | ??????# ########### =! #####!!!####???????? | | ??????# r r r ru @*%= ??????? | | ??????# % ??????? | | ??????# ??????? | | ??????# r#####+#### ######+##?????????? | | ??????## ##?# #### #????????????????? | | ???????# #??# #??# """"" #????????????????? | | ???????# #??# #??# """"" #????????????????? | | ???????# #??# """ #??# """"" #????????????????? | | ???????# #??# """ #??# #????????????????? | | ???????# #??# """ #??# """"" ?#????????????????? | | ???????# #??# """ #??# ?"""????????????????????? | | ???????# #??# """ #??# ????????????????????????? | | ???????# #??# ??? #??# ????????????????????????? | | ######## #??#???? #????????????????????????????? | | # #??????? #????????????????????????????? | | # #??????? #????????????????????????????? | | # #????????#????????????????????????????? | | ############?????????????????????????????????????? | | ?????????????????????????????????????????????????? | | ?????????????????????????????????????????????????? | | ?????????????????????????????????????????????????? | | ?????????????????????????????????????????????????? | | ?????????????????????????????????????????????????? | | ?????????????????????????????????????????????????? | | | +----------------------------------------------------+ Best States ------------- Heat Dissipation 25 Coolant Potential 50 Energy Generation 14 Energy Capacity 200 Matter Stores 300 Matter Capacity 300 Sight Range 16 Terrain Scan Density 10 Armor Coverage 150 Evasion (%) 50 Recoil Reduction 2 Item Schematics ----------------- None Robot Schematics ------------------ None Fabricated ------------ Nothing Repaired ---------- Lgt. Treads | 22% | -10/Materials Studied --------- None Alien Tech Used ----------------- None Achievements -------------- None Challenges ------------ None Game ------ Seed AlloyMasterNukerbomber Manual? 0 Play Time 00:20:28 Cumulative 212.9 hours Start 2025.12.09 @ 18:32:00 End 2025.12.09 @ 18:52:10 Sessions 1 Manual Loads 0 Difficulty Rogue Special Mode None Game No. 202 Rogue 202 Adventurer 0 Explorer 0 Win Type - Total 10 Types 7/0/2/0/0/0/0/0/0/1 Lore% 84 Gallery% 74 Achievement% 59 Wizard Run 0 Options --------- Layout 1 ASCII 0 Keyboard 1 Movement Arrows Keybinds 0 Fullscreen 1 Font 24/Smallcaps Map View 50x40 Zoom Use 0% Tactical HUD 1 Map Filters NONE Filters NONE Steam 1 RUN: ee6bae64-52ac-43cf-88a9-c5a848e601b8